lending/lending_fUSD_20240507
["ID","MTS","AMOUNT","RATE_DAILY","PERIOD"]
[326594888,1715122247018,-500.0,0.00019178,2]
[326594889,1715122247030,-500.0,0.00019178,2]
[326594890,1715122247039,-500.0,0.00019178,2]
[326594891,1715122247049,-500.0,0.00019178,2]
[326594892,1715122247058,-500.0,0.00019178,2]
[326594893,1715122247068,-527.77,0.00019178,2]
[326594894,1715122247078,-500.0,0.00019178,2]
[326594895,1715122247088,-500.0,0.00019178,2]
[326594896,1715122247097,-500.0,0.00019178,2]
[326594897,1715122247107,-500.0,0.00019178,2]
[326594898,1715122247117,-500.0,0.00019178,2]
[326594899,1715122247126,-166.84,0.00019178,2]
[326594900,1715122247136,-3876.01243216,0.000192,2]
[326594901,1715122247146,-682.97,0.000192,2]
[326594902,1715122247155,-755.32,0.000192,2]
[326594903,1715122247165,-517.96,0.000192,2]
[326594904,1715122247175,-256.10041728,0.00019451,2]
[326594905,1715122247184,-279.44658647,0.00019451,2]
[326594906,1715122247194,-322.83109908,0.00019451,5]
[326594907,1715122247205,-285.17,0.00019452,2]
[326594908,1715122247214,-160.1,0.00019452,2]
[326594909,1715122247224,-163.69,0.00019452,2]
[326594910,1715122247233,-500.0,0.00019452,2]
[326594911,1715122247243,-495.1,0.00019452,2]
[326594912,1715122247252,-500.0,0.00019452,2]
[326594913,1715122247262,-500.0,0.00019452,2]
[326594914,1715122247274,-166.96,0.00019452,2]
[326594915,1715122247284,-548.44,0.00019452,2]
[326594916,1715122247294,-500.0,0.00019452,2]
[326594917,1715122247303,-500.0,0.00019452,2]
[326594918,1715122247312,-500.0,0.00019452,2]
[326594919,1715122247322,-613.44,0.00019452,2]
[326594920,1715122247331,-159.5,0.00019452,2]
[326594921,1715122247340,-214.52,0.00019452,2]
[326594922,1715122247350,-500.0,0.00019452,2]
[326594923,1715122247359,-500.0,0.00019452,2]
[326594924,1715122247369,-486.38,0.00019452,2]
[326594925,1715122247379,-500.0,0.00019452,2]
[326594926,1715122247388,-403.96546081,0.00019452,2]
[326594927,1715122247397,-500.0,0.00019452,2]
[326594928,1715122247406,-500.0,0.00019452,2]
[326594929,1715122247416,-500.0,0.00019452,2]
[326594930,1715122247425,-500.0,0.00019452,2]
[326594931,1715122247434,-500.0,0.00019452,2]
[326594932,1715122247443,-500.0,0.00019452,2]
[326594933,1715122247452,-500.0,0.00019452,2]
[326594934,1715122247462,-500.0,0.00019452,2]
[326594935,1715122247471,-480.25,0.00019452,2]
[326594936,1715122247481,-615.16,0.00019452,2]
[326594937,1715122247490,-500.0,0.00019452,2]
[326594938,1715122247499,-438.24,0.00019452,2]
[326594939,1715122247510,-500.0,0.00019452,2]
[326594940,1715122247522,-432.18,0.00019452,2]
[326594941,1715122247531,-154.08,0.00019452,2]
[326594942,1715122247540,-500.0,0.00019452,2]
[326594943,1715122247550,-500.0,0.00019452,2]
[326594944,1715122247560,-500.0,0.00019452,2]
[326594945,1715122247569,-253.06,0.00019452,2]
[326594946,1715122247578,-185.34,0.00019452,2]
[326594947,1715122247588,-500.0,0.00019452,2]
[326594948,1715122247597,-500.0,0.00019452,2]
[326594949,1715122247606,-239.71,0.00019452,2]
[326594950,1715122247616,-420.41645748,0.00019452,2]
[326594951,1715122247625,-281.41,0.00019452,2]
[326594952,1715122247635,-500.0,0.00019452,2]
[326594953,1715122247645,-500.0,0.00019452,2]
[326594954,1715122247655,-500.0,0.00019452,2]
[326594955,1715122247665,-500.0,0.00019452,2]
[326594956,1715122247675,-500.0,0.00019452,2]
[326594957,1715122247685,-500.0,0.00019452,2]
[326594958,1715122247694,-538.38,0.00019452,2]
[326594959,1715122247703,-500.0,0.00019452,2]
[326594960,1715122247713,-357.38,0.00019452,2]
[326594961,1715122247723,-500.0,0.00019452,2]
[326594962,1715122247732,-163.53,0.00019452,2]
[326594963,1715122247741,-500.0,0.00019452,2]
[326594964,1715122247750,-229.57,0.00019452,2]
[326594965,1715122247760,-500.0,0.00019452,2]
[326594966,1715122247770,-500.0,0.00019452,2]
[326594967,1715122247780,-234.9,0.00019452,2]
[326594968,1715122247789,-619.86,0.00019452,2]
[326594969,1715122247805,-157.39,0.00019452,2]
[326594970,1715122247814,-500.0,0.00019452,2]
[326594971,1715122247823,-500.0,0.00019452,2]
[326594972,1715122247833,-500.0,0.00019452,2]
[326594973,1715122247844,-500.0,0.00019452,2]
[326594974,1715122247853,-500.0,0.00019452,2]
[326594975,1715122247863,-507.42550479,0.00019452,2]
[326594976,1715122247872,-500.0,0.00019452,2]
[326594977,1715122247884,-500.0,0.00019452,2]
[326594978,1715122247893,-514.16,0.00019452,2]
[326594979,1715122247902,-500.0,0.00019452,2]
[326594980,1715122247912,-500.0,0.00019452,2]
[326594981,1715122247921,-469.5,0.00019452,2]
[326594982,1715122247932,-500.0,0.00019452,2]
[326594983,1715122247942,-500.0,0.00019452,2]
[326594984,1715122247951,-513.84,0.00019452,2]
[326594985,1715122247962,-500.0,0.00019452,2]
[326594986,1715122247972,-500.0,0.00019452,2]
[326594987,1715122247982,-500.0,0.00019452,2]
[326594988,1715122247991,-150.0,0.00019452,2]
[326594989,1715122248001,-500.0,0.00019452,2]
[326594990,1715122248011,-500.0,0.00019452,2]
[326594991,1715122248021,-500.0,0.00019452,2]
[326594992,1715122248030,-235.96,0.00019452,2]
[326594993,1715122248040,-164.02,0.00019452,2]
[326594994,1715122248049,-500.0,0.00019452,2]
[326594995,1715122248059,-500.0,0.00019452,2]
[326594996,1715122248068,-489.35,0.00019452,2]
[326594997,1715122248079,-500.0,0.00019452,2]
[326594998,1715122248088,-500.0,0.00019452,2]
[326594999,1715122248098,-500.0,0.00019452,2]
[326595000,1715122248107,-500.0,0.00019452,2]
[326595001,1715122248116,-500.0,0.00019452,2]
[326595002,1715122248125,-500.0,0.00019452,2]
[326595003,1715122248135,-500.0,0.00019452,2]
[326595004,1715122248145,-500.0,0.00019452,2]
[326595005,1715122248154,-542.64,0.00019452,2]
[326595006,1715122248163,-280.04,0.00019452,2]
[326595007,1715122248173,-500.0,0.00019452,2]
[326595008,1715122248182,-500.0,0.00019452,2]
[326595009,1715122248193,-500.0,0.00019452,2]
[326595010,1715122248202,-500.0,0.00019452,2]
[326595011,1715122248212,-500.0,0.00019452,2]
[326595012,1715122248221,-500.0,0.00019452,2]
[326595013,1715122248231,-500.0,0.00019452,2]
[326595014,1715122248240,-500.0,0.00019452,2]
[326595015,1715122248250,-500.0,0.00019452,2]
[326595016,1715122248259,-500.0,0.00019452,2]
[326595017,1715122248270,-569.2993399,0.00019452,2]
[326595018,1715122248279,-500.0,0.00019452,2]
[326595019,1715122248288,-500.0,0.00019452,2]
[326595020,1715122248298,-500.0,0.00019452,2]
[326595021,1715122248307,-500.0,0.00019452,2]
[326595022,1715122248317,-500.0,0.00019452,2]
[326595023,1715122248327,-500.0,0.00019452,2]
[326595024,1715122248337,-415.29,0.00019452,2]
[326595025,1715122248347,-500.0,0.00019452,2]
[326595026,1715122248357,-171.05,0.00019452,2]
[326595027,1715122248367,-605.89,0.00019452,2]
[326595028,1715122248376,-500.0,0.00019452,2]
[326595029,1715122248386,-327.56,0.00019452,2]
[326595030,1715122248396,-500.0,0.00019452,2]
[326595031,1715122248406,-262.88,0.00019452,2]
[326595032,1715122248416,-500.0,0.00019452,2]
[326595033,1715122248427,-500.0,0.00019452,2]
[326595034,1715122248436,-500.0,0.00019452,2]
[326595035,1715122248445,-500.0,0.00019452,2]
[326595036,1715122248455,-500.0,0.00019452,2]
[326595037,1715122248465,-176.07,0.00019452,2]
[326595038,1715122248474,-500.0,0.00019452,2]
[326595039,1715122248483,-500.0,0.00019452,2]
[326595040,1715122248493,-500.0,0.00019452,2]
[326595041,1715122248502,-500.0,0.00019452,2]
[326595042,1715122248512,-500.0,0.00019452,2]
[326595043,1715122248523,-500.0,0.00019452,2]
[326595044,1715122248533,-500.0,0.00019452,2]
[326595045,1715122248542,-500.0,0.00019452,2]
[326595046,1715122248552,-500.0,0.00019452,2]
[326595047,1715122248561,-525.11,0.00019452,2]
[326595049,1715122248571,-500.0,0.00019452,2]
[326595050,1715122248580,-500.0,0.00019452,2]
[326595051,1715122248589,-500.0,0.00019452,2]
[326595052,1715122248599,-550.6,0.00019452,2]
[326595053,1715122248608,-500.0,0.00019452,2]
[326595054,1715122248617,-500.0,0.00019452,2]
[326595055,1715122248626,-500.0,0.00019452,2]
[326595056,1715122248635,-500.0,0.00019452,2]
[326595057,1715122248645,-500.0,0.00019452,2]
[326595058,1715122248654,-500.0,0.00019452,2]
[326595059,1715122248663,-527.90744092,0.00019452,2]
[326595060,1715122248672,-500.0,0.00019452,2]
[326595061,1715122248681,-179.25,0.00019452,2]
[326595062,1715122248690,-500.0,0.00019452,2]
[326595063,1715122248699,-183.82,0.00019452,2]
[326595064,1715122248708,-290.81,0.00019452,2]
[326595065,1715122248717,-443.86,0.00019452,2]
[326595066,1715122248726,-500.0,0.00019452,2]
[326595067,1715122248736,-343.73,0.00019452,2]
[326595068,1715122248745,-507.46,0.00019452,2]
[326595069,1715122248765,-500.0,0.00019452,2]
[326595070,1715122248776,-539.96,0.00019452,2]
[326595071,1715122248785,-510.87,0.00019452,2]
[326595072,1715122248796,-168.47,0.00019452,2]
[326595073,1715122248809,-500.0,0.00019452,2]
[326595074,1715122248819,-233.48,0.00019452,2]
[326595075,1715122248828,-566.97,0.00019452,2]
[326595076,1715122248838,-500.0,0.00019452,2]
[326595077,1715122248849,-500.0,0.00019452,2]
[326595078,1715122248859,-500.0,0.00019452,2]
[326595079,1715122248869,-625.59,0.00019452,2]
[326595080,1715122248878,-500.0,0.00019452,2]
[326595081,1715122248891,-500.0,0.00019452,2]
[326595082,1715122248901,-500.0,0.00019452,2]
[326595083,1715122248911,-500.0,0.00019452,2]
[326595084,1715122248920,-458.49,0.00019452,2]
[326595085,1715122248929,-459.08,0.00019452,2]
[326595086,1715122248939,-1192.99,0.00019452,2]
[326595087,1715122248949,-500.0,0.00019452,2]
[326595088,1715122248958,-500.0,0.00019452,2]
[326595089,1715122248968,-504.22576868,0.00019452,2]
[326595090,1715122248978,-500.0,0.00019452,2]
[326595091,1715122248988,-554.98,0.00019452,2]
[326595092,1715122248997,-500.0,0.00019452,2]
[326595093,1715122249007,-500.0,0.00019452,2]
[326595094,1715122249016,-396.68,0.00019452,2]
[326595095,1715122249026,-340.9,0.00019452,2]
[326595096,1715122249035,-500.0,0.00019452,2]
[326595097,1715122249044,-500.0,0.00019452,2]
[326595098,1715122249054,-500.0,0.00019452,2]
[326595099,1715122249063,-500.0,0.00019452,2]
[326595100,1715122249072,-539.31,0.00019452,2]
[326595101,1715122249082,-622.67,0.00019452,2]
[326595102,1715122249091,-412.69312836,0.00019452,2]
[326595103,1715122249100,-500.0,0.00019452,2]
[326595104,1715122249110,-500.0,0.00019452,2]
[326595105,1715122249119,-500.0,0.00019452,2]
[326595106,1715122249128,-325.96,0.00019452,2]
[326595107,1715122249137,-500.0,0.00019452,2]
[326595108,1715122249146,-578.94,0.00019452,2]
[326595109,1715122249156,-500.0,0.00019452,2]
[326595110,1715122249165,-500.0,0.00019452,2]
[326595111,1715122249174,-500.0,0.00019452,2]
[326595112,1715122249184,-500.0,0.00019452,2]
[326595113,1715122249193,-500.0,0.00019452,2]
[326595114,1715122249203,-335.2,0.00019452,2]
[326595115,1715122249212,-500.0,0.00019452,2]
[326595116,1715122249221,-165.98,0.00019452,2]
[326595117,1715122249231,-500.0,0.00019452,2]
[326595118,1715122249240,-694.46,0.00019452,2]
[326595119,1715122249249,-500.0,0.00019452,2]
[326595120,1715122249259,-500.0,0.00019452,2]
[326595121,1715122249268,-500.0,0.00019452,2]
[326595122,1715122249277,-520.3,0.00019452,2]
[326595123,1715122249286,-534.15041587,0.00019452,2]
[326595124,1715122249295,-500.0,0.00019452,2]
[326595125,1715122249305,-500.0,0.00019452,2]
[326595126,1715122249314,-536.58,0.00019452,2]
[326595127,1715122249324,-500.0,0.00019452,2]
[326595128,1715122249333,-500.0,0.00019452,2]
[326595129,1715122249342,-500.0,0.00019452,2]
[326595130,1715122249351,-500.0,0.00019452,2]
[326595131,1715122249360,-500.0,0.00019452,2]
[326595132,1715122249370,-500.0,0.00019452,2]
[326595133,1715122249379,-500.0,0.00019452,2]
[326595134,1715122249389,-500.0,0.00019452,2]
[326595135,1715122249398,-690.02,0.00019452,2]
[326595136,1715122249407,-538.6,0.00019452,2]
[326595137,1715122249418,-500.0,0.00019452,2]
[326595138,1715122249427,-277.2,0.00019452,2]
[326595139,1715122249436,-500.0,0.00019452,2]
[326595140,1715122249445,-500.0,0.00019452,2]
[326595141,1715122249454,-500.0,0.00019452,2]
[326595142,1715122249463,-500.0,0.00019452,2]
[326595143,1715122249472,-725.56,0.00019452,2]
[326595144,1715122249481,-198.7,0.00019452,2]
[326595145,1715122249490,-2665.36,0.00019452,2]
[326595146,1715122249499,-500.0,0.00019452,2]
[326595147,1715122249511,-500.0,0.00019452,2]
[326595148,1715122249521,-173.56,0.00019452,2]
[326595149,1715122249530,-1103.68,0.00019452,2]
[326595150,1715122249539,-500.0,0.00019452,2]
[326595151,1715122249549,-508.47545167,0.00019452,2]
[326595152,1715122249558,-500.0,0.00019452,2]
[326595153,1715122249567,-500.0,0.00019452,2]
[326595154,1715122249576,-500.0,0.00019452,2]
[326595155,1715122249586,-1369.86,0.00019452,2]
[326595156,1715122249595,-500.0,0.00019452,2]
[326595157,1715122249604,-500.0,0.00019452,2]
[326595158,1715122249614,-548.67,0.00019452,2]
[326595159,1715122249623,-500.0,0.00019452,2]
[326595160,1715122249632,-500.0,0.00019452,2]
[326595161,1715122249641,-500.0,0.00019452,2]
[326595162,1715122249650,-500.0,0.00019452,2]
[326595163,1715122249659,-984.9,0.00019452,2]
[326595164,1715122249668,-500.0,0.00019452,2]
[326595165,1715122249677,-500.0,0.00019452,2]
[326595166,1715122249686,-500.0,0.00019452,2]
[326595167,1715122249695,-500.0,0.00019452,2]
[326595168,1715122249704,-500.0,0.00019452,2]
[326595169,1715122249713,-500.0,0.00019452,2]
[326595170,1715122249722,-548.03799969,0.00019452,2]
[326595171,1715122249732,-500.0,0.00019452,2]
[326595172,1715122249741,-599.64,0.00019452,2]
[326595173,1715122249750,-500.0,0.00019452,2]
[326595174,1715122249759,-2106.05,0.00019452,2]
[326595175,1715122249769,-500.0,0.00019452,2]
[326595176,1715122249779,-500.0,0.00019452,2]
[326595177,1715122249788,-500.0,0.00019452,2]
[326595178,1715122249798,-500.0,0.00019452,2]
[326595179,1715122249812,-500.0,0.00019452,2]
[326595180,1715122249821,-500.0,0.00019452,2]
[326595181,1715122249830,-633.24,0.00019452,2]
[326595182,1715122249841,-500.0,0.00019452,2]
[326595183,1715122249850,-500.0,0.00019452,2]
[326595184,1715122249994,-500.0,0.00019452,2]
[326595185,1715122250021,-500.0,0.00019452,2]
[326595186,1715122250031,-500.0,0.00019452,2]
[326595187,1715122250040,-500.0,0.00019452,2]
[326595188,1715122250049,-500.0,0.00019452,2]
[326595189,1715122250059,-500.0,0.00019452,2]
[326595190,1715122250068,-500.0,0.00019452,2]
[326595191,1715122250077,-500.0,0.00019452,2]
[326595192,1715122250086,-500.0,0.00019452,2]
[326595193,1715122250096,-743.91,0.00019452,2]
[326595194,1715122250105,-500.0,0.00019452,2]
[326595195,1715122250114,-500.0,0.00019452,2]
[326595196,1715122250123,-500.0,0.00019452,2]
[326595197,1715122250132,-500.0,0.00019452,2]
[326595198,1715122250141,-532.71,0.00019452,2]
[326595199,1715122250151,-216.78,0.00019452,2]
[326595200,1715122250160,-500.0,0.00019452,2]
[326595201,1715122250169,-185.12,0.00019452,2]
[326595202,1715122250178,-621.6,0.00019452,2]
[326595203,1715122250188,-1592.2,0.00019452,2]
[326595204,1715122250197,-500.0,0.00019452,2]
[326595205,1715122250207,-500.0,0.00019452,2]
[326595206,1715122250216,-500.0,0.00019452,2]
[326595207,1715122250225,-706.51,0.00019452,2]
[326595208,1715122250235,-500.0,0.00019452,2]
[326595209,1715122250244,-500.0,0.00019452,2]
[326595210,1715122250254,-504.35,0.00019452,2]
[326595211,1715122250265,-500.0,0.00019452,2]
[326595212,1715122250275,-500.0,0.00019452,2]
[326595213,1715122250284,-632.63,0.00019452,2]
[326595214,1715122250294,-500.0,0.00019452,2]
[326595215,1715122250303,-290.84,0.00019452,2]
[326595216,1715122250312,-500.0,0.00019452,2]
[326595217,1715122250322,-500.0,0.00019452,2]
[326595218,1715122250331,-500.0,0.00019452,2]
[326595219,1715122250340,-500.0,0.00019452,2]
[326595220,1715122250349,-500.0,0.00019452,2]
[326595221,1715122250358,-500.0,0.00019452,2]
[326595222,1715122250368,-500.0,0.00019452,2]
[326595223,1715122250377,-2045.26,0.00019452,2]
[326595224,1715122250386,-3756.12,0.00019452,2]
[326595225,1715122250396,-500.0,0.00019452,2]
[326595226,1715122250405,-500.0,0.00019452,2]
[326595227,1715122250414,-500.0,0.00019452,2]
[326595228,1715122250424,-500.0,0.00019452,2]
[326595229,1715122250433,-500.0,0.00019452,2]
[326595230,1715122250443,-500.0,0.00019452,2]
[326595231,1715122250452,-500.0,0.00019452,2]
[326595232,1715122250461,-500.0,0.00019452,2]
[326595233,1715122250470,-500.0,0.00019452,2]
[326595234,1715122250479,-500.0,0.00019452,2]
[326595235,1715122250488,-500.0,0.00019452,2]
[326595236,1715122250497,-500.0,0.00019452,2]
[326595237,1715122250507,-500.0,0.00019452,2]
[326595238,1715122250516,-500.0,0.00019452,2]
[326595239,1715122250526,-500.0,0.00019452,2]
[326595240,1715122250535,-500.0,0.00019452,2]
[326595241,1715122250544,-527.77,0.00019452,2]
[326595242,1715122250554,-500.0,0.00019452,2]
[326595243,1715122250563,-500.0,0.00019452,2]
[326595244,1715122250572,-500.0,0.00019452,2]
[326595245,1715122250581,-500.0,0.00019452,2]
[326595246,1715122250591,-152.62869324,0.0001948,2]
[326595247,1715122250600,-154.66083298,0.00019642,2]
[326595248,1715122250609,-193.0,0.00019654,15]
[326595249,1715122250618,-337.0,0.00019654,15]
[326595250,1715122250628,-193.0,0.00019664,15]
[326595251,1715122250637,-337.0,0.00019664,15]
[326595252,1715122250646,-193.0,0.00019674,15]
[326595253,1715122250655,-337.0,0.00019674,15]
[326595254,1715122250665,-500.0,0.00019726,2]
[326595255,1715122250674,-500.0,0.00019726,2]
[326595256,1715122250683,-617.76,0.00019726,2]
[326595257,1715122250692,-460.33,0.00019726,2]
[326595258,1715122250702,-500.0,0.00019726,2]
[326595259,1715122250711,-500.0,0.00019726,2]
[326595260,1715122250720,-500.0,0.00019726,2]
[326595261,1715122250729,-597.27517309,0.00019726,2]
[326595262,1715122250738,-500.0,0.00019726,2]
[326595263,1715122250747,-500.0,0.00019726,2]
[326595264,1715122250756,-328.77,0.00019726,2]
[326595265,1715122250765,-500.0,0.00019726,2]
[326595266,1715122250776,-226.08926606,0.00019726,2]
[326595267,1715122250784,-500.0,0.00019726,2]
[326595268,1715122250794,-646.4404551,0.00019726,2]
[326595269,1715122250807,-500.0,0.00019726,2]
[326595270,1715122250815,-500.0,0.00019726,2]
[326595271,1715122250824,-500.0,0.00019726,2]
[326595272,1715122250833,-359.1,0.00019726,2]
[326595273,1715122250843,-500.0,0.00019726,2]
[326595274,1715122250853,-500.0,0.00019726,2]
[326595275,1715122250862,-500.0,0.00019726,2]
[326595276,1715122250871,-500.0,0.00019726,2]
[326595277,1715122250881,-646.07,0.00019726,2]
[326595278,1715122250893,-500.0,0.00019726,2]
[326595279,1715122250903,-500.0,0.00019726,2]
[326595280,1715122250912,-500.0,0.00019726,2]
[326595281,1715122250921,-500.0,0.00019726,2]
[326595282,1715122250931,-500.0,0.00019726,2]
[326595283,1715122250940,-500.0,0.00019726,2]
[326595284,1715122250949,-500.0,0.00019726,2]
[326595285,1715122250958,-500.0,0.00019726,2]
[326595286,1715122250967,-500.0,0.00019726,2]
[326595287,1715122250977,-404.94,0.00019726,2]
[326595288,1715122250987,-500.0,0.00019726,2]
[326595289,1715122250996,-500.0,0.00019726,2]
[326595290,1715122251006,-500.0,0.00019726,2]
[326595291,1715122251015,-500.0,0.00019726,2]
[326595292,1715122251026,-500.0,0.00019726,2]
[326595293,1715122251035,-288.06,0.00019726,2]
[326595294,1715122251046,-357.62,0.00019726,2]
[326595295,1715122251055,-500.0,0.00019726,2]
[326595296,1715122251065,-500.0,0.00019726,2]
[326595297,1715122251074,-150.0,0.00019726,2]
[326595298,1715122251084,-500.0,0.00019726,2]
[326595299,1715122251093,-500.0,0.00019726,2]
[326595300,1715122251102,-418.23,0.00019726,2]
[326595301,1715122251111,-500.0,0.00019726,2]
[326595302,1715122251121,-555.88,0.00019726,2]
[326595303,1715122251130,-500.0,0.00019726,2]
[326595304,1715122251139,-500.0,0.00019726,2]
[326595305,1715122251148,-500.0,0.00019726,2]
[326595306,1715122251157,-500.0,0.00019726,2]
[326595307,1715122251166,-500.0,0.00019726,2]
[326595308,1715122251175,-500.0,0.00019726,2]
[326595309,1715122251185,-500.0,0.00019726,2]
[326595310,1715122251194,-471.83,0.00019726,2]
[326595311,1715122251204,-500.0,0.00019726,2]
[326595312,1715122251213,-500.0,0.00019726,2]
[326595313,1715122251222,-500.0,0.00019726,2]
[326595314,1715122251232,-500.0,0.00019726,2]
[326595315,1715122251241,-500.0,0.00019726,2]
[326595316,1715122251250,-500.0,0.00019726,2]
[326595317,1715122251260,-500.0,0.00019726,2]
[326595318,1715122251269,-500.0,0.00019726,2]
[326595319,1715122251279,-500.0,0.00019726,2]
[326595320,1715122251288,-500.0,0.00019726,2]
[326595321,1715122251298,-242.63,0.00019726,2]
[326595322,1715122251307,-500.0,0.00019726,2]
[326595323,1715122251316,-500.0,0.00019726,2]
[326595324,1715122251325,-500.0,0.00019726,2]
[326595325,1715122251334,-500.0,0.00019726,2]
[326595326,1715122251344,-500.0,0.00019726,2]
[326595327,1715122251353,-500.0,0.00019726,2]
[326595328,1715122251363,-500.0,0.00019726,2]
[326595329,1715122251372,-500.0,0.00019726,2]
[326595330,1715122251381,-500.0,0.00019726,2]
[326595331,1715122251390,-516.7,0.00019726,2]
[326595332,1715122251399,-589.59,0.00019726,2]
[326595333,1715122251408,-374.9,0.00019726,2]
[326595334,1715122251418,-162.07764435,0.00019726,2]
[326595335,1715122251427,-500.0,0.00019726,2]
[326595336,1715122251436,-500.0,0.00019726,2]
[326595337,1715122251446,-500.0,0.00019726,2]
[326595338,1715122251455,-229.5,0.00019726,2]
[326595339,1715122251464,-500.0,0.00019726,2]
[326595340,1715122251473,-500.0,0.00019726,2]
[326595341,1715122251483,-500.0,0.00019726,2]
[326595342,1715122251491,-500.0,0.00019726,2]
[326595343,1715122251501,-500.0,0.00019726,2]
[326595344,1715122251510,-500.0,0.00019726,2]
[326595345,1715122251521,-500.0,0.00019726,2]
[326595346,1715122251530,-500.0,0.00019726,2]
[326595347,1715122251539,-500.0,0.00019726,2]
[326595348,1715122251548,-258.11,0.00019726,2]
[326595349,1715122251557,-178.41675866,0.00019726,2]
[326595350,1715122251566,-500.0,0.00019726,2]
[326595351,1715122251575,-500.0,0.00019726,2]
[326595352,1715122251584,-500.0,0.00019726,2]
[326595353,1715122251594,-500.0,0.00019726,2]
[326595354,1715122251603,-500.0,0.00019726,2]
[326595355,1715122251612,-500.0,0.00019726,2]
[326595356,1715122251622,-157.16,0.00019726,2]
[326595357,1715122251631,-500.0,0.00019726,2]
[326595358,1715122251640,-1192.99,0.00019726,2]
[326595359,1715122251650,-500.0,0.00019726,2]
[326595360,1715122251660,-500.0,0.00019726,2]
[326595361,1715122251669,-500.0,0.00019726,2]
[326595362,1715122251679,-554.98,0.00019726,2]
[326595363,1715122251688,-252.57,0.00019726,2]
[326595364,1715122251697,-500.0,0.00019726,2]
[326595365,1715122251707,-500.0,0.00019726,2]
[326595366,1715122251716,-500.0,0.00019726,2]
[326595367,1715122251726,-500.0,0.00019726,2]
[326595368,1715122251736,-500.0,0.00019726,2]
[326595369,1715122251745,-539.31,0.00019726,2]
[326595370,1715122251754,-622.67,0.00019726,2]
[326595371,1715122251763,-500.0,0.00019726,2]
[326595372,1715122251773,-500.0,0.00019726,2]
[326595373,1715122251782,-500.0,0.00019726,2]
[326595374,1715122251791,-500.0,0.00019726,2]
[326595375,1715122251804,-500.0,0.00019726,2]
[326595376,1715122251814,-349.78,0.00019726,2]
[326595377,1715122251823,-500.0,0.00019726,2]
[326595378,1715122251832,-500.0,0.00019726,2]
[326595379,1715122251842,-500.0,0.00019726,2]
[326595380,1715122251851,-252.20957319,0.00019726,2]
[326595381,1715122251861,-500.0,0.00019726,2]
[326595382,1715122251870,-694.46,0.00019726,2]
[326595383,1715122251880,-500.0,0.00019726,2]
[326595384,1715122251889,-500.0,0.00019726,2]
[326595385,1715122251899,-500.0,0.00019726,2]
[326595386,1715122251909,-500.0,0.00019726,2]
[326595387,1715122251919,-500.0,0.00019726,2]
[326595388,1715122251928,-500.0,0.00019726,2]